[Event "*** Qualifier 1: Titled Tuesday 3|2 Blitz"]
[Site "Chess.com"]
[Date "2017.04.04"]
[Round "9"]
[White "Titus369"]
[Black "Tirantes"]
[Result "1/2-1/2"]
[WhiteElo "2184"]
[BlackElo "2197"]
[TimeControl "180+2"]
[EndTime "15:09:07 PDT"]
[Termination "Game drawn - insufficient material"]

1. e4 {[%clk 0:03:02]} 1... e5 {[%clk 0:02:59.1]} 2. Nf3 {[%clk 0:03:03]} 2...
Nc6 {[%clk 0:02:59.9]} 3. Bb5 {[%clk 0:03:03.2]} 3... a6 {[%clk 0:03:01]} 4. Ba4
{[%clk 0:03:04.1]} 4... Nf6 {[%clk 0:03:01.3]} 5. d3 {[%clk 0:03:05.5]} 5... d6
{[%clk 0:03:00.6]} 6. c3 {[%clk 0:03:06.5]} 6... g6 {[%clk 0:02:58.2]} 7. Nbd2
{[%clk 0:03:05.1]} 7... Bg7 {[%clk 0:02:58.5]} 8. O-O {[%clk 0:03:05.6]} 8...
O-O {[%clk 0:02:58.9]} 9. Re1 {[%clk 0:03:04.9]} 9... Kh8 {[%clk 0:02:55.5]} 10.
Nf1 {[%clk 0:03:05.1]} 10... Nh5 {[%clk 0:02:55.5]} 11. Ng3 {[%clk 0:02:58.7]}
11... Nf4 {[%clk 0:02:53]} 12. h3 {[%clk 0:02:48.2]} 12... Qf6 {[%clk 0:02:48]}
13. d4 {[%clk 0:02:39.4]} 13... Ne7 {[%clk 0:02:31.5]} 14. Be3 {[%clk
0:02:23.4]} 14... Be6 {[%clk 0:02:28.2]} 15. Bc2 {[%clk 0:02:07.1]} 15... Rad8
{[%clk 0:02:26.7]} 16. d5 {[%clk 0:01:56.7]} 16... Bc8 {[%clk 0:02:26.1]} 17.
Nh2 {[%clk 0:01:53.8]} 17... h5 {[%clk 0:02:24.1]} 18. Qf3 {[%clk 0:01:43.5]}
18... Bh6 {[%clk 0:02:18.7]} 19. Ne2 {[%clk 0:01:36.6]} 19... Nxe2+ {[%clk
0:02:14.6]} 20. Rxe2 {[%clk 0:01:34.5]} 20... Qg7 {[%clk 0:02:07.9]} 21. Bxh6
{[%clk 0:01:34.4]} 21... Qxh6 {[%clk 0:02:08.2]} 22. Qf6+ {[%clk 0:01:35.2]}
22... Kg8 {[%clk 0:01:52.2]} 23. Qxe7 {[%clk 0:01:35.4]} 23... Rd7 {[%clk
0:01:27.6]} 24. Qf6 {[%clk 0:01:30.2]} 24... Qg7 {[%clk 0:01:20.1]} 25. Qxg7+
{[%clk 0:01:29.2]} 25... Kxg7 {[%clk 0:01:21.1]} 26. Nf3 {[%clk 0:01:26.4]}
26... f6 {[%clk 0:01:20]} 27. c4 {[%clk 0:01:23.6]} 27... g5 {[%clk 0:01:19]}
28. b4 {[%clk 0:01:21.9]} 28... Kg6 {[%clk 0:01:18.3]} 29. c5 {[%clk 0:01:19.2]}
29... Rh7 {[%clk 0:01:15.2]} 30. cxd6 {[%clk 0:01:19]} 30... cxd6 {[%clk
0:01:15.2]} 31. h4 {[%clk 0:01:14.5]} 31... Bg4 {[%clk 0:01:12.3]} 32. Re3
{[%clk 0:01:11.6]} 32... Rc8 {[%clk 0:01:09.4]} 33. Bb3 {[%clk 0:01:06]} 33...
Rhc7 {[%clk 0:01:09.3]} 34. Nh2 {[%clk 0:00:55.2]} 34... gxh4 {[%clk 0:01:05.3]}
35. Ree1 {[%clk 0:00:51.1]} 35... Rc3 {[%clk 0:01:02.6]} 36. Bd1 {[%clk
0:00:44.7]} 36... Kg5 {[%clk 0:00:57.8]} 37. Bf3 {[%clk 0:00:32.8]} 37... R8c4
{[%clk 0:00:54]} 38. Rab1 {[%clk 0:00:30.5]} 38... b5 {[%clk 0:00:52.5]} 39.
Bxg4 {[%clk 0:00:28.4]} 39... hxg4 {[%clk 0:00:52.1]} 40. Nf1 {[%clk 0:00:27.1]}
40... Rd4 {[%clk 0:00:41.1]} 41. Rec1 {[%clk 0:00:24]} 41... Rxc1 {[%clk
0:00:30.3]} 42. Rxc1 {[%clk 0:00:25.9]} 42... Rxe4 {[%clk 0:00:28.4]} 43. Rc6
{[%clk 0:00:25.5]} 43... Re1 {[%clk 0:00:28.4]} 44. Rxd6 {[%clk 0:00:26]} 44...
h3 {[%clk 0:00:28.9]} 45. gxh3 {[%clk 0:00:23.6]} 45... gxh3 {[%clk 0:00:29.5]}
46. Rxa6 {[%clk 0:00:21.3]} 46... h2+ {[%clk 0:00:30.3]} 47. Kxh2 {[%clk
0:00:22.5]} 47... Rxf1 {[%clk 0:00:31.4]} 48. Kg2 {[%clk 0:00:23.9]} 48... Rd1
{[%clk 0:00:29.7]} 49. Ra5 {[%clk 0:00:24.8]} 49... Rd2 {[%clk 0:00:25.3]} 50.
a3 {[%clk 0:00:23.3]} 50... Kf4 {[%clk 0:00:25.3]} 51. Rxb5 {[%clk 0:00:23.2]}
51... e4 {[%clk 0:00:26.1]} 52. Rb6 {[%clk 0:00:22.4]} 52... f5 {[%clk
0:00:26.1]} 53. Re6 {[%clk 0:00:17.7]} 53... Rxd5 {[%clk 0:00:24.3]} 54. Rc6
{[%clk 0:00:16.2]} 54... Rd2 {[%clk 0:00:23.1]} 55. Rc3 {[%clk 0:00:16.3]} 55...
Rb2 {[%clk 0:00:22.1]} 56. Rh3 {[%clk 0:00:15.1]} 56... Ke5 {[%clk 0:00:21.1]}
57. Kf1 {[%clk 0:00:14.3]} 57... f4 {[%clk 0:00:21.5]} 58. Rc3 {[%clk
0:00:14.1]} 58... Kd4 {[%clk 0:00:22]} 59. Rc8 {[%clk 0:00:11.9]} 59... f3
{[%clk 0:00:22.5]} 60. Rd8+ {[%clk 0:00:11.8]} 60... Kc3 {[%clk 0:00:22.4]} 61.
Rd1 {[%clk 0:00:12.1]} 61... Ra2 {[%clk 0:00:22.8]} 62. Re1 {[%clk 0:00:13.2]}
62... Kd3 {[%clk 0:00:23.2]} 63. Rb1 {[%clk 0:00:11.8]} 63... Rxa3 {[%clk
0:00:21.7]} 64. b5 {[%clk 0:00:12.4]} 64... e3 {[%clk 0:00:22.2]} 65. fxe3
{[%clk 0:00:12.2]} 65... Kxe3 {[%clk 0:00:23.1]} 66. b6 {[%clk 0:00:13.7]} 66...
Ra8 {[%clk 0:00:23.2]} 67. b7 {[%clk 0:00:14.5]} 67... Rb8 {[%clk 0:00:24.3]}
68. Rb3+ {[%clk 0:00:14.9]} 68... Kd4 {[%clk 0:00:25]} 69. Kf2 {[%clk
0:00:16.2]} 69... Kc5 {[%clk 0:00:25.9]} 70. Kxf3 {[%clk 0:00:16.6]} 70... Kc6
{[%clk 0:00:27.1]} 71. Ke4 {[%clk 0:00:17.4]} 71... Rxb7 {[%clk 0:00:28.2]} 72.
Rxb7 {[%clk 0:00:19.3]} 72... Kxb7 {[%clk 0:00:29.1]} 1/2-1/2

[Event "*** Qualifier 1: Titled Tuesday 3|2 Blitz"]
[Site "Chess.com"]
[Date "2017.04.04"]
[Round "9"]
[White "AlexanderL"]
[Black "Bengalas"]
[Result "1/2-1/2"]
[WhiteElo "2584"]
[BlackElo "2474"]
[TimeControl "180+2"]
[EndTime "15:09:22 PDT"]
[Termination "Game drawn by agreement"]

1. e4 {[%clk 0:03:02]} 1... c5 {[%clk 0:03:00.1]} 2. Nc3 {[%clk 0:03:02.5]} 2...
e6 {[%clk 0:02:56.6]} 3. Nge2 {[%clk 0:03:00.6]} 3... Nc6 {[%clk 0:02:56.1]} 4.
g3 {[%clk 0:03:00.5]} 4... Nf6 {[%clk 0:02:33.5]} 5. Bg2 {[%clk 0:03:00.8]} 5...
Be7 {[%clk 0:02:34.2]} 6. O-O {[%clk 0:03:01.2]} 6... O-O {[%clk 0:02:34.5]} 7.
d4 {[%clk 0:03:01.2]} 7... cxd4 {[%clk 0:02:35.4]} 8. Nxd4 {[%clk 0:03:03.1]}
8... Qc7 {[%clk 0:02:26.6]} 9. h3 {[%clk 0:03:03.4]} 9... d6 {[%clk 0:02:26]}
10. Be3 {[%clk 0:02:45.3]} 10... a6 {[%clk 0:02:25.5]} 11. a4 {[%clk 0:02:40.6]}
11... Bd7 {[%clk 0:02:24.2]} 12. Nde2 {[%clk 0:02:36.8]} 12... Na5 {[%clk
0:02:17.2]} 13. b3 {[%clk 0:02:36.2]} 13... Rac8 {[%clk 0:02:16.1]} 14. Bd2
{[%clk 0:02:16.6]} 14... Rfe8 {[%clk 0:02:08.4]} 15. Kh1 {[%clk 0:02:14.8]}
15... Nc6 {[%clk 0:01:49.1]} 16. g4 {[%clk 0:02:09.8]} 16... h6 {[%clk
0:01:20.6]} 17. Ng3 {[%clk 0:02:06.7]} 17... Ne5 {[%clk 0:01:17.7]} 18. f4
{[%clk 0:02:06.2]} 18... Ng6 {[%clk 0:01:17.2]} 19. g5 {[%clk 0:01:44.2]} 19...
hxg5 {[%clk 0:01:17.2]} 20. fxg5 {[%clk 0:01:45.5]} 20... Nh7 {[%clk 0:01:18.4]}
21. h4 {[%clk 0:01:34.6]} 21... Nxh4 {[%clk 0:01:01.9]} 22. Qh5 {[%clk
0:01:35.4]} 22... Ng6 {[%clk 0:00:57.2]} 23. Nge2 {[%clk 0:01:22.9]} 23... Bxg5
{[%clk 0:00:29.5]} 24. Bxg5 {[%clk 0:01:21.7]} 24... Qc5 {[%clk 0:00:30.3]} 25.
e5 {[%clk 0:00:30.8]} 25... Qxe5 {[%clk 0:00:28.4]} 26. Ne4 {[%clk 0:00:32]}
26... Bc6 {[%clk 0:00:19.6]} 27. N2g3 {[%clk 0:00:33.3]} 27... Nxg5 {[%clk
0:00:12.1]} 28. Nxg5 {[%clk 0:00:26.8]} 28... Bxg2+ {[%clk 0:00:13]} 29. Kxg2
{[%clk 0:00:28.2]} 29... Rxc2+ {[%clk 0:00:13.9]} 30. Kh3 {[%clk 0:00:26.6]}
30... Nf4+ {[%clk 0:00:15]} 31. Rxf4 {[%clk 0:00:25.2]} 31... Qxf4 {[%clk
0:00:16.3]} 32. Rf1 {[%clk 0:00:14.9]} 32... Rf2 {[%clk 0:00:14.3]} 33. Rxf2
{[%clk 0:00:09.3]} 33... Qxf2 {[%clk 0:00:15.2]} 34. Qh7+ {[%clk 0:00:09.7]}
34... Kf8 {[%clk 0:00:16.4]} 35. Qh8+ {[%clk 0:00:11.1]} 35... Ke7 {[%clk
0:00:17.8]} 36. Qxg7 {[%clk 0:00:12.7]} 36... Rf8 {[%clk 0:00:16.3]} 37. Nh7
{[%clk 0:00:08.4]} 37... Rc8 {[%clk 0:00:16.4]} 38. Qg5+ {[%clk 0:00:09.8]}
38... Kd7 {[%clk 0:00:16.7]} 39. Nf6+ {[%clk 0:00:11.2]} 39... Kc7 {[%clk
0:00:17.4]} 40. Nfe4 {[%clk 0:00:06.3]} 40... Rh8+ {[%clk 0:00:17.6]} 41. Nh5
{[%clk 0:00:03.7]} 41... Qf3+ {[%clk 0:00:17.5]} 42. Ng3 {[%clk 0:00:05.2]}
42... Kb8 {[%clk 0:00:16.9]} 43. Kh4 {[%clk 0:00:05.1]} 43... Qxb3 {[%clk
0:00:17.6]} 44. Qe7 {[%clk 0:00:05]} 44... Qc4+ {[%clk 0:00:18]} 45. Kg5 {[%clk
0:00:05.6]} 45... Qc5+ {[%clk 0:00:18.8]} 46. Kg4 {[%clk 0:00:06.1]} 46... Rg8+
{[%clk 0:00:19.2]} 47. Kh3 {[%clk 0:00:07.1]} 47... Qd5 {[%clk 0:00:19.4]} 48.
Qxf7 {[%clk 0:00:07.2]} 48... Rc8 {[%clk 0:00:20.3]} 49. Nf4 {[%clk 0:00:06.8]}
49... Qe5 {[%clk 0:00:19.6]} 50. Nxe6 {[%clk 0:00:05.4]} 50... Rc3 {[%clk
0:00:20.3]} 51. Nf4 {[%clk 0:00:05.8]} 51... Qg5 {[%clk 0:00:19]} 52. Ne2 {[%clk
0:00:04]} 52... Rxg3+ {[%clk 0:00:19.4]} 53. Nxg3 {[%clk 0:00:04.8]} 53... Qe5
{[%clk 0:00:20.5]} 54. Qf8+ {[%clk 0:00:03.2]} 54... Ka7 {[%clk 0:00:21.1]} 55.
Qf2+ {[%clk 0:00:05.1]} 55... Kb8 {[%clk 0:00:22]} 56. Qf8+ {[%clk 0:00:06]}
56... Ka7 {[%clk 0:00:23.3]} 57. Qf2+ {[%clk 0:00:07.7]} 57... Kb8 {[%clk
0:00:24.6]} 58. Nf5 {[%clk 0:00:09.3]} 58... Qc3+ {[%clk 0:00:24.6]} 59. Kg4
{[%clk 0:00:09.6]} 59... Qc4+ {[%clk 0:00:24.8]} 60. Kg5 {[%clk 0:00:07.9]}
60... Qxa4 {[%clk 0:00:25.7]} 61. Nxd6 {[%clk 0:00:08.8]} 61... Qc6 {[%clk
0:00:25.7]} 62. Qf8+ {[%clk 0:00:08.3]} 62... Kc7 {[%clk 0:00:26.5]} 63. Qe7+
{[%clk 0:00:07.8]} 63... Kb6 {[%clk 0:00:25.5]} 64. Kf4 {[%clk 0:00:08.6]} 64...
Qc1+ {[%clk 0:00:25.2]} 65. Kf5 {[%clk 0:00:09.5]} 65... Qc5+ {[%clk 0:00:25.7]}
66. Ke6 {[%clk 0:00:10.1]} 66... Qe3+ {[%clk 0:00:24.7]} 1/2-1/2

[Event "*** Qualifier 1: Titled Tuesday 3|2 Blitz"]
[Site "Chess.com"]
[Date "2017.04.04"]
[Round "9"]
[White "Th3ChessViking"]
[Black "penguingm1"]
[Result "0-1"]
[WhiteElo "2328"]
[BlackElo "2587"]
[TimeControl "180+2"]
[EndTime "15:09:40 PDT"]
[Termination "penguingm1 won by resignation"]

1. c4 {[%clk 0:03:02]} 1... e6 {[%clk 0:03:01]} 2. g3 {[%clk 0:03:02.7]} 2...
Nf6 {[%clk 0:03:01]} 3. Bg2 {[%clk 0:03:03.4]} 3... d5 {[%clk 0:03:02.5]} 4. Nf3
{[%clk 0:03:04.9]} 4... Be7 {[%clk 0:03:02.6]} 5. O-O {[%clk 0:03:03.5]} 5...
O-O {[%clk 0:03:03.7]} 6. d4 {[%clk 0:03:01.5]} 6... dxc4 {[%clk 0:03:04.8]} 7.
Qa4 {[%clk 0:02:56.5]} 7... a6 {[%clk 0:03:04.6]} 8. Qxc4 {[%clk 0:02:55.9]}
8... b5 {[%clk 0:03:05.2]} 9. Qc2 {[%clk 0:02:57.8]} 9... Bb7 {[%clk 0:03:05]}
10. Bf4 {[%clk 0:02:54.1]} 10... Nc6 {[%clk 0:02:59.5]} 11. Rd1 {[%clk
0:02:53.9]} 11... Nb4 {[%clk 0:02:56.4]} 12. Qd2 {[%clk 0:02:53.1]} 12... c5
{[%clk 0:02:12.6]} 13. dxc5 {[%clk 0:02:48.3]} 13... Bxc5 {[%clk 0:02:13]} 14.
Qxd8 {[%clk 0:02:18.9]} 14... Rfxd8 {[%clk 0:02:13.4]} 15. Nc3 {[%clk
0:02:17.2]} 15... h6 {[%clk 0:01:15]} 16. Ne5 {[%clk 0:01:58.2]} 16... Nbd5
{[%clk 0:00:52]} 17. Nxd5 {[%clk 0:01:50]} 17... Nxd5 {[%clk 0:00:52.8]} 18. Nd3
{[%clk 0:01:49.6]} 18... Bb6 {[%clk 0:00:47.2]} 19. Rac1 {[%clk 0:01:43.5]}
19... Rac8 {[%clk 0:00:44.5]} 20. Rxc8 {[%clk 0:01:40.9]} 20... Rxc8 {[%clk
0:00:46.4]} 21. Rc1 {[%clk 0:01:42.2]} 21... Nxf4 {[%clk 0:00:29.4]} 22. gxf4
{[%clk 0:01:12]} 22... Rxc1+ {[%clk 0:00:27.5]} 23. Nxc1 {[%clk 0:01:13.9]}
23... Bc8 {[%clk 0:00:17]} 24. Bc6 {[%clk 0:01:11.8]} 24... Kf8 {[%clk
0:00:17.9]} 25. Nd3 {[%clk 0:01:12]} 25... Ke7 {[%clk 0:00:18.1]} 26. Kf1 {[%clk
0:01:03.3]} 26... Kd6 {[%clk 0:00:19.2]} 27. Bf3 {[%clk 0:01:02.5]} 27... f6
{[%clk 0:00:19.8]} 28. e3 {[%clk 0:00:55.9]} 28... a5 {[%clk 0:00:18.2]} 29. Ke2
{[%clk 0:00:53.9]} 29... b4 {[%clk 0:00:18.8]} 30. Kd2 {[%clk 0:00:53.8]} 30...
Bd7 {[%clk 0:00:18.3]} 31. b3 {[%clk 0:00:51.6]} 31... Bb5 {[%clk 0:00:12.9]}
32. Nb2 {[%clk 0:00:50.5]} 32... Bc7 {[%clk 0:00:12.5]} 33. Nc4+ {[%clk
0:00:48.1]} 33... Kc5 {[%clk 0:00:13.7]} 34. Nb2 {[%clk 0:00:34.8]} 34... g5
{[%clk 0:00:13]} 35. fxg5 {[%clk 0:00:34.7]} 35... hxg5 {[%clk 0:00:14.9]} 36.
Nd3+ {[%clk 0:00:18.9]} 36... Kb6 {[%clk 0:00:14.6]} 37. h3 {[%clk 0:00:18.6]}
37... Bd7 {[%clk 0:00:15.4]} 38. Bg2 {[%clk 0:00:19]} 38... Bd6 {[%clk
0:00:13.7]} 39. Nb2 {[%clk 0:00:19.8]} 39... Kc5 {[%clk 0:00:13.4]} 40. Nc4
{[%clk 0:00:21.6]} 40... Bc7 {[%clk 0:00:14.3]} 41. Nb2 {[%clk 0:00:23.1]} 41...
Kd6 {[%clk 0:00:13.9]} 42. Nd3 {[%clk 0:00:25]} 42... Ke7 {[%clk 0:00:12.2]} 43.
Nb2 {[%clk 0:00:25.1]} 43... Be5 {[%clk 0:00:10.9]} 44. Nc4 {[%clk 0:00:26.1]}
44... Bc3+ {[%clk 0:00:12.1]} 45. Kd3 {[%clk 0:00:26.5]} 45... a4 {[%clk
0:00:11.9]} 46. Nb6 {[%clk 0:00:25]} 46... Bb5+ {[%clk 0:00:11.7]} 47. Nc4
{[%clk 0:00:24.4]} 47... a3 {[%clk 0:00:10.8]} 48. Kc2 {[%clk 0:00:21.2]} 48...
Be8 {[%clk 0:00:10.9]} 49. Kd3 {[%clk 0:00:21.5]} 49... Bg6+ {[%clk 0:00:10.9]}
50. Be4 {[%clk 0:00:22.4]} 50... f5 {[%clk 0:00:12.2]} 51. Bg2 {[%clk
0:00:22.1]} 51... Kf6 {[%clk 0:00:12.6]} 52. e4 {[%clk 0:00:22.8]} 52... Bh5
{[%clk 0:00:12]} 53. Nxa3 {[%clk 0:00:17.1]} 53... Be1 {[%clk 0:00:09.2]} 54.
Nc2 {[%clk 0:00:18.2]} 54... Bxf2 {[%clk 0:00:09.9]} 55. Nxb4 {[%clk 0:00:19]}
55... f4 {[%clk 0:00:07.8]} 56. Nc6 {[%clk 0:00:15.3]} 56... f3 {[%clk 0:00:08]}
57. Bf1 {[%clk 0:00:16.1]} 57... Be8 {[%clk 0:00:08.6]} 58. Nd4 {[%clk
0:00:14.5]} 58... e5 {[%clk 0:00:06.1]} 59. Nxf3 {[%clk 0:00:14.9]} 59... Bb5+
{[%clk 0:00:07.6]} 60. Kc3 {[%clk 0:00:16.2]} 60... Bxf1 {[%clk 0:00:09.3]} 61.
h4 {[%clk 0:00:14.8]} 61... g4 {[%clk 0:00:07]} 0-1

[Event "*** Qualifier 1: Titled Tuesday 3|2 Blitz"]
[Site "Chess.com"]
[Date "2017.04.04"]
[Round "10"]
[White "Gabix_94"]
[Black "SmoothAsAHedgehog"]
[Result "1-0"]
[WhiteElo "2521"]
[BlackElo "2521"]
[TimeControl "180+2"]
[EndTime "15:17:15 PDT"]
[Termination "Gabix_94 won by checkmate"]

1. e4 {[%clk 0:03:02]} 1... e5 {[%clk 0:03:00.7]} 2. Nf3 {[%clk 0:03:02.9]} 2...
Nc6 {[%clk 0:03:02.3]} 3. Nc3 {[%clk 0:02:56.5]} 3... Nf6 {[%clk 0:02:58.8]} 4.
Be2 {[%clk 0:02:56.6]} 4... Bb4 {[%clk 0:02:59.7]} 5. Nd5 {[%clk 0:02:52.6]}
5... Ba5 {[%clk 0:02:55.1]} 6. c3 {[%clk 0:02:53.7]} 6... d6 {[%clk 0:02:53.4]}
7. a4 {[%clk 0:02:54.2]} 7... a6 {[%clk 0:02:49]} 8. b4 {[%clk 0:02:50.8]} 8...
Bb6 {[%clk 0:02:50.3]} 9. Nxb6 {[%clk 0:02:32.5]} 9... cxb6 {[%clk 0:02:52.2]}
10. d3 {[%clk 0:02:33.6]} 10... O-O {[%clk 0:02:51.6]} 11. O-O {[%clk
0:02:33.8]} 11... Be6 {[%clk 0:02:51.3]} 12. Ng5 {[%clk 0:02:23.4]} 12... Bd7
{[%clk 0:02:39.6]} 13. f4 {[%clk 0:02:22.8]} 13... h6 {[%clk 0:02:29.5]} 14. Nf3
{[%clk 0:02:18.2]} 14... b5 {[%clk 0:02:29.8]} 15. Kh1 {[%clk 0:02:14]} 15...
bxa4 {[%clk 0:02:21.7]} 16. Rxa4 {[%clk 0:02:12.9]} 16... Re8 {[%clk 0:02:19.9]}
17. Ra2 {[%clk 0:02:11.1]} 17... exf4 {[%clk 0:02:11.4]} 18. Bxf4 {[%clk
0:02:09.6]} 18... d5 {[%clk 0:02:12.9]} 19. e5 {[%clk 0:02:10.1]} 19... Nh5
{[%clk 0:02:13.1]} 20. Bc1 {[%clk 0:02:09]} 20... g5 {[%clk 0:01:59]} 21. Nxg5
{[%clk 0:01:56.4]} 21... hxg5 {[%clk 0:02:00.1]} 22. Bxh5 {[%clk 0:01:57.4]}
22... Nxe5 {[%clk 0:02:01.6]} 23. Raf2 {[%clk 0:01:55]} 23... Be6 {[%clk
0:02:02.1]} 24. Rf6 {[%clk 0:01:50.3]} 24... Nd7 {[%clk 0:01:52.3]} 25. Bxg5
{[%clk 0:01:48.8]} 25... Nxf6 {[%clk 0:01:53.2]} 26. Bxf6 {[%clk 0:01:49.2]}
26... Qd6 {[%clk 0:01:52.5]} 27. Qd2 {[%clk 0:01:49.5]} 27... Qf8 {[%clk
0:01:49.8]} 28. Qg5+ {[%clk 0:01:48.1]} 28... Kh7 {[%clk 0:01:51.1]} 29. Qh4
{[%clk 0:01:46.2]} 29... Kg8 {[%clk 0:01:23.4]} 30. Bg4 {[%clk 0:01:43.2]} 30...
Qxb4 {[%clk 0:00:59]} 31. Qh8# {[%clk 0:01:41.7]} 1-0

[Event "*** Qualifier 1: Titled Tuesday 3|2 Blitz"]
[Site "Chess.com"]
[Date "2017.04.04"]
[Round "10"]
[White "Robin-Side"]
[Black "Duhless"]
[Result "0-1"]
[WhiteElo "2428"]
[BlackElo "2717"]
[TimeControl "180+2"]
[EndTime "15:17:38 PDT"]
[Termination "Duhless won by resignation"]

1. d4 {[%clk 0:03:02]} 1... c6 {[%clk 0:03:02]} 2. c4 {[%clk 0:03:02.8]} 2... d5
{[%clk 0:03:03.9]} 3. Nc3 {[%clk 0:03:04.2]} 3... Nf6 {[%clk 0:03:05.5]} 4. e3
{[%clk 0:03:05.6]} 4... g6 {[%clk 0:03:06.3]} 5. Nf3 {[%clk 0:03:06.8]} 5... Bg7
{[%clk 0:03:07.8]} 6. Be2 {[%clk 0:03:08.5]} 6... O-O {[%clk 0:03:08.9]} 7. O-O
{[%clk 0:03:09.9]} 7... Nbd7 {[%clk 0:03:10]} 8. b4 {[%clk 0:03:10.7]} 8... dxc4
{[%clk 0:03:06.9]} 9. Bxc4 {[%clk 0:03:12.6]} 9... Nb6 {[%clk 0:03:07.7]} 10.
Be2 {[%clk 0:03:13.7]} 10... Nfd5 {[%clk 0:03:09.6]} 11. Nxd5 {[%clk 0:03:01.4]}
11... cxd5 {[%clk 0:03:11.5]} 12. Bd2 {[%clk 0:02:54.8]} 12... Bg4 {[%clk
0:03:13]} 13. h3 {[%clk 0:02:46.8]} 13... Bxf3 {[%clk 0:03:14.1]} 14. Bxf3
{[%clk 0:02:48.7]} 14... Nc4 {[%clk 0:03:15.1]} 15. b5 {[%clk 0:02:43.1]} 15...
Rc8 {[%clk 0:03:16]} 16. Bb4 {[%clk 0:02:36.2]} 16... Re8 {[%clk 0:03:17.4]} 17.
a4 {[%clk 0:02:30.9]} 17... e6 {[%clk 0:03:18.7]} 18. Rc1 {[%clk 0:02:25.4]}
18... Bf8 {[%clk 0:03:19.7]} 19. Bxf8 {[%clk 0:02:13.5]} 19... Kxf8 {[%clk
0:03:21.6]} 20. Be2 {[%clk 0:02:14.9]} 20... Qa5 {[%clk 0:03:15.8]} 21. Bxc4
{[%clk 0:01:47.1]} 21... Rxc4 {[%clk 0:03:17.7]} 22. Rxc4 {[%clk 0:01:44.4]}
22... dxc4 {[%clk 0:03:19.6]} 23. Qc2 {[%clk 0:01:40.2]} 23... Rc8 {[%clk
0:03:19.5]} 24. Rc1 {[%clk 0:01:40.9]} 24... c3 {[%clk 0:03:19.3]} 25. Qb3
{[%clk 0:01:36.8]} 25... Qc7 {[%clk 0:03:17.4]} 26. Rc2 {[%clk 0:01:34.7]} 26...
b6 {[%clk 0:02:57.9]} 27. Kf1 {[%clk 0:01:35.6]} 27... e5 {[%clk 0:02:53.4]} 28.
d5 {[%clk 0:01:28.1]} 28... Qc4+ {[%clk 0:02:52.7]} 29. Qxc4 {[%clk 0:01:27.8]}
29... Rxc4 {[%clk 0:02:54.6]} 30. Ke2 {[%clk 0:01:24.1]} 30... e4 {[%clk
0:02:55.4]} 31. g4 {[%clk 0:01:08.1]} 31... f5 {[%clk 0:02:53.7]} 32. gxf5
{[%clk 0:00:58.3]} 32... gxf5 {[%clk 0:02:55.6]} 33. f3 {[%clk 0:00:59.8]} 33...
Ke7 {[%clk 0:02:56.7]} 34. fxe4 {[%clk 0:00:53]} 34... fxe4 {[%clk 0:02:58.6]}
35. Rc1 {[%clk 0:00:46.9]} 35... Kd6 {[%clk 0:03:00]} 36. h4 {[%clk 0:00:31.6]}
36... Kxd5 {[%clk 0:03:00.8]} 37. h5 {[%clk 0:00:33.1]} 37... h6 {[%clk
0:02:58.9]} 38. Rf1 {[%clk 0:00:17.9]} 38... c2 {[%clk 0:02:59.6]} 39. Kd2
{[%clk 0:00:19.1]} 39... c1=Q+ {[%clk 0:03:00.9]} 40. Rxc1 {[%clk 0:00:20.4]}
40... Rxc1 {[%clk 0:03:02.7]} 41. Kxc1 {[%clk 0:00:22.3]} 41... Kc4 {[%clk
0:03:04.3]} 42. Kc2 {[%clk 0:00:24.2]} 42... Kb4 {[%clk 0:03:05.4]} 43. Kb2
{[%clk 0:00:21.8]} 43... Kxa4 {[%clk 0:03:06.7]} 44. Kc3 {[%clk 0:00:23.2]}
44... Kxb5 {[%clk 0:03:08.6]} 45. Kd4 {[%clk 0:00:24.8]} 45... a5 {[%clk
0:03:09.3]} 46. Kxe4 {[%clk 0:00:26.7]} 46... a4 {[%clk 0:03:10.9]} 47. Kf5
{[%clk 0:00:28.6]} 47... a3 {[%clk 0:03:12.2]} 48. Kg6 {[%clk 0:00:30.5]} 48...
a2 {[%clk 0:03:13.6]} 49. Kxh6 {[%clk 0:00:32.4]} 49... a1=Q {[%clk 0:03:15.1]}
50. Kg6 {[%clk 0:00:33.9]} 50... Qe5 {[%clk 0:03:16.5]} 0-1

[Event "*** Qualifier 1: Titled Tuesday 3|2 Blitz"]
[Site "Chess.com"]
[Date "2017.04.04"]
[Round "10"]
[White "BogdanDeac"]
[Black "Rodalquilar"]
[Result "1-0"]
[WhiteElo "2388"]
[BlackElo "2535"]
[TimeControl "180+2"]
[EndTime "15:18:29 PDT"]
[Termination "BogdanDeac won by checkmate"]

1. e4 {[%clk 0:03:02]} 1... e5 {[%clk 0:03:00.8]} 2. Nf3 {[%clk 0:03:01.6]} 2...
Nc6 {[%clk 0:03:02]} 3. Bc4 {[%clk 0:03:02.6]} 3... Bc5 {[%clk 0:03:02.4]} 4.
O-O {[%clk 0:03:02.9]} 4... Nf6 {[%clk 0:03:02.9]} 5. d3 {[%clk 0:03:04.2]} 5...
d6 {[%clk 0:03:03.4]} 6. c3 {[%clk 0:03:04.3]} 6... Bb6 {[%clk 0:03:04]} 7. a4
{[%clk 0:03:04.5]} 7... a5 {[%clk 0:03:04.9]} 8. Re1 {[%clk 0:03:01]} 8... Ne7
{[%clk 0:03:06]} 9. d4 {[%clk 0:02:57]} 9... Ng6 {[%clk 0:03:06.6]} 10. Be3
{[%clk 0:02:38.9]} 10... exd4 {[%clk 0:02:33.3]} 11. Bxd4 {[%clk 0:02:36.7]}
11... Bxd4 {[%clk 0:02:31.9]} 12. cxd4 {[%clk 0:02:36.2]} 12... O-O {[%clk
0:02:29.3]} 13. Nc3 {[%clk 0:02:35.7]} 13... c6 {[%clk 0:02:28.7]} 14. e5 {[%clk
0:02:36.4]} 14... Ne8 {[%clk 0:01:57.9]} 15. d5 {[%clk 0:02:27.3]} 15... Bg4
{[%clk 0:01:51.2]} 16. exd6 {[%clk 0:01:34.8]} 16... Nxd6 {[%clk 0:01:51.5]} 17.
Be2 {[%clk 0:01:34.4]} 17... Nf4 {[%clk 0:01:37.7]} 18. dxc6 {[%clk 0:01:33.6]}
18... bxc6 {[%clk 0:01:38.4]} 19. Ne5 {[%clk 0:01:32.7]} 19... Bxe2 {[%clk
0:01:31.4]} 20. Nxe2 {[%clk 0:01:31.9]} 20... Nxe2+ {[%clk 0:01:24.7]} 21. Rxe2
{[%clk 0:01:30.7]} 21... Nf5 {[%clk 0:01:07.6]} 22. Nxc6 {[%clk 0:01:27.9]}
22... Qb6 {[%clk 0:01:08.5]} 23. Qd5 {[%clk 0:01:24.2]} 23... Rac8 {[%clk
0:01:01.2]} 24. Rc2 {[%clk 0:01:02.4]} 24... g6 {[%clk 0:00:43.1]} 25. g4 {[%clk
0:01:00.6]} 25... Rfd8 {[%clk 0:00:19.4]} 26. Nxd8 {[%clk 0:00:58.6]} 26... Rxc2
{[%clk 0:00:19.3]} 27. Qxf7+ {[%clk 0:00:58.2]} 27... Kh8 {[%clk 0:00:20.8]} 28.
Qf8# {[%clk 0:00:58.8]} 1-0